[Event "Titled Tuesday Blitz August 08 Late 2023"]
[White "Swicarz, Maciej"]
[Black "Harish, Neeraj"]
[WhiteFideId "1113585"]
[BlackFideId "30958130"]
[WhiteElo "2432"]
[BlackElo "2342"]
[Result "1-0"]
[Round "11"]
[TimeControl "180+1"]
[Date "2023.08.08"]
[WhiteClock "0:00:47"]
[BlackClock "0:00:15"]
[Board "71"]

1. c4 {[%clk 0:03:00]}  e6 {[%clk 0:02:54]} 2. Nc3 {[%clk 0:03:00]}  d5 {[%clk 0:02:54]} 3. d4 {[%clk 0:02:59]}  h6 {[%clk 0:02:53]} 4. cxd5 {[%clk 0:02:56]}  exd5 {[%clk 0:02:52]} 5. Bf4 {[%clk 0:02:57]}  Nf6 {[%clk 0:02:52]} 6. e3 {[%clk 0:02:56]}  Bd6 {[%clk 0:02:52]} 7. Bxd6 {[%clk 0:02:51]}  Qxd6 {[%clk 0:02:53]} 8. Bd3 {[%clk 0:02:51]}  O-O {[%clk 0:02:52]} 9. Nge2 {[%clk 0:02:50]}  Be6 {[%clk 0:02:30]} 10. Qb3 {[%clk 0:02:46]}  Nc6 {[%clk 0:02:28]} 11. a3 {[%clk 0:02:40]}  Ne7 {[%clk 0:02:27]} 12. Rc1 {[%clk 0:02:36]}  Qd7 {[%clk 0:02:24]} 13. O-O {[%clk 0:02:27]}  c6 {[%clk 0:02:23]} 14. Na4 {[%clk 0:02:26]}  Rab8 {[%clk 0:02:13]} 15. Nf4 {[%clk 0:02:20]}  Bf5 {[%clk 0:02:12]} 16. Nc5 {[%clk 0:02:19]}  Qc8 {[%clk 0:02:11]} 17. Bxf5 {[%clk 0:02:13]}  Nxf5 {[%clk 0:02:11]} 18. Qc2 {[%clk 0:02:11]}  Nd6 {[%clk 0:02:09]} 19. b3 {[%clk 0:02:08]}  Re8 {[%clk 0:02:06]} 20. Nfd3 {[%clk 0:02:07]}  Qd8 {[%clk 0:02:03]} 21. Ne5 {[%clk 0:02:04]}  Nfe4 {[%clk 0:01:55]} 22. Nxe4 {[%clk 0:02:02]}  Nxe4 {[%clk 0:01:54]} 23. b4 {[%clk 0:02:00]}  f6 {[%clk 0:01:52]} 24. Nd3 {[%clk 0:02:00]}  Nd6 {[%clk 0:01:50]} 25. a4 {[%clk 0:01:59]}  Nc4 {[%clk 0:01:47]} 26. b5 {[%clk 0:01:54]}  cxb5 {[%clk 0:01:40]} 27. axb5 {[%clk 0:01:55]}  a5 {[%clk 0:01:37]} 28. bxa6 {[%clk 0:01:51]}  bxa6 {[%clk 0:01:37]} 29. Rb1 {[%clk 0:01:51]}  Qd6 {[%clk 0:01:31]} 30. Nc5 {[%clk 0:01:46]}  a5 {[%clk 0:01:28]} 31. Rxb8 {[%clk 0:01:38]}  Rxb8 {[%clk 0:01:27]} 32. Rb1 {[%clk 0:01:37]}  Na3 {[%clk 0:01:19]} 33. Rxb8+ {[%clk 0:01:33]}  Qxb8 {[%clk 0:01:20]} 34. Qa2 {[%clk 0:01:33]}  Qb4 {[%clk 0:01:15]} 35. Qxd5+ {[%clk 0:01:28]}  Kh8 {[%clk 0:01:14]} 36. g3 {[%clk 0:01:26]}  Nc4 {[%clk 0:01:10]} 37. Qa8+ {[%clk 0:01:14]}  Kh7 {[%clk 0:01:09]} 38. Qe4+ {[%clk 0:01:14]}  Kh8 {[%clk 0:01:08]} 39. Qe8+ {[%clk 0:01:13]}  Kh7 {[%clk 0:01:08]} 40. Ne6 {[%clk 0:01:13]}  Qe1+ {[%clk 0:01:00]} 41. Kg2 {[%clk 0:01:12]}  Nxe3+ {[%clk 0:01:00]} 42. fxe3 {[%clk 0:01:12]}  Qe2+ {[%clk 0:00:59]} 43. Kh3 {[%clk 0:01:12]}  Qf1+ {[%clk 0:00:57]} 44. Kg4 {[%clk 0:00:55]}  Qe2+ {[%clk 0:00:24]} 45. Kf4 {[%clk 0:00:53]}  Qf2+ {[%clk 0:00:17]} 46. Ke4 {[%clk 0:00:53]}  Qg2+ {[%clk 0:00:17]} 47. Kd3 {[%clk 0:00:52]}  Qf1+ {[%clk 0:00:17]} 48. Kc3 {[%clk 0:00:51]}  Qe1+ {[%clk 0:00:17]} 49. Kc4 {[%clk 0:00:50]}  Qb4+ {[%clk 0:00:17]} 50. Kd5 {[%clk 0:00:50]}  Qb3+ {[%clk 0:00:17]} 51. Kd6 {[%clk 0:00:50]}  Qb4+ {[%clk 0:00:17]} 52. Nc5 {[%clk 0:00:49]}  Qb6+ {[%clk 0:00:17]} 53. Ke7 {[%clk 0:00:49]}  Qc7+ {[%clk 0:00:16]} 54. Qd7 {[%clk 0:00:48]}  Qxd7+ {[%clk 0:00:15]} 55. Kxd7 {[%clk 0:00:47]}  a4 {[%clk 0:00:15]} 56. Nxa4 {[%clk 0:00:47]} 1-0


[Site "https://www.chess.com"]

[Event "Titled Tuesday Blitz August 08 Late 2023"]
[White "Stachanczyk, Jacek"]
[Black "Salazar Farias, Luis German"]
[WhiteFideId "1116657"]
[BlackFideId "3902170"]
[WhiteElo "2340"]
[BlackElo "2428"]
[Result "0-1"]
[Round "11"]
[TimeControl "180+1"]
[Date "2023.08.08"]
[WhiteClock "0:00:08"]
[BlackClock "0:00:06"]
[Board "73"]

1. d4 {[%clk 0:02:57]}  Nf6 {[%clk 0:02:55]} 2. c4 {[%clk 0:02:56]}  e6 {[%clk 0:02:55]} 3. Nf3 {[%clk 0:02:55]}  d5 {[%clk 0:02:55]} 4. g3 {[%clk 0:02:55]}  Bb4+ {[%clk 0:02:50]} 5. Bd2 {[%clk 0:02:55]}  Be7 {[%clk 0:02:49]} 6. Bg2 {[%clk 0:02:55]}  O-O {[%clk 0:02:49]} 7. O-O {[%clk 0:02:55]}  c6 {[%clk 0:02:49]} 8. Qc2 {[%clk 0:02:39]}  a5 {[%clk 0:02:19]} 9. Bf4 {[%clk 0:02:18]}  Nbd7 {[%clk 0:02:14]} 10. Nbd2 {[%clk 0:02:17]}  Nh5 {[%clk 0:02:11]} 11. Be3 {[%clk 0:02:14]}  b6 {[%clk 0:02:10]} 12. cxd5 {[%clk 0:02:11]}  cxd5 {[%clk 0:02:09]} 13. Rac1 {[%clk 0:02:06]}  Ba6 {[%clk 0:02:04]} 14. Rfe1 {[%clk 0:02:06]}  Rc8 {[%clk 0:01:57]} 15. Qb1 {[%clk 0:02:02]}  Rxc1 {[%clk 0:01:55]} 16. Qxc1 {[%clk 0:02:03]}  Qa8 {[%clk 0:01:48]} 17. g4 {[%clk 0:01:56]}  Rc8 {[%clk 0:01:41]} 18. Qb1 {[%clk 0:01:56]}  Nhf6 {[%clk 0:01:42]} 19. h3 {[%clk 0:01:56]}  Bd6 {[%clk 0:01:30]} 20. Bg5 {[%clk 0:01:51]}  Qc6 {[%clk 0:01:14]} 21. e4 {[%clk 0:01:38]}  dxe4 {[%clk 0:01:02]} 22. Ne5 {[%clk 0:01:20]}  Nxe5 {[%clk 0:00:41]} 23. dxe5 {[%clk 0:01:21]}  Bxe5 {[%clk 0:00:41]} 24. Nxe4 {[%clk 0:01:21]}  Qc2 {[%clk 0:00:27]} 25. Nxf6+ {[%clk 0:01:18]}  gxf6 {[%clk 0:00:21]} 26. Be3 {[%clk 0:00:51]}  Qxb1 {[%clk 0:00:20]} 27. Rxb1 {[%clk 0:00:52]}  b5 {[%clk 0:00:12]} 28. b4 {[%clk 0:00:46]}  axb4 {[%clk 0:00:12]} 29. Rxb4 {[%clk 0:00:40]}  Kg7 {[%clk 0:00:09]} 30. Bf1 {[%clk 0:00:36]}  Rc2 {[%clk 0:00:08]} 31. Bxb5 {[%clk 0:00:33]}  Bxb5 {[%clk 0:00:07]} 32. Rxb5 {[%clk 0:00:34]}  Rxa2 {[%clk 0:00:08]} 33. Rb7 {[%clk 0:00:33]}  Ra4 {[%clk 0:00:07]} 34. Kg2 {[%clk 0:00:33]}  Bd4 {[%clk 0:00:07]} 35. Bxd4 {[%clk 0:00:32]}  Rxd4 {[%clk 0:00:08]} 36. Rb5 {[%clk 0:00:32]}  Rd7 {[%clk 0:00:05]} 37. Rb3 {[%clk 0:00:32]}  Kg6 {[%clk 0:00:05]} 38. Kg3 {[%clk 0:00:32]}  Rd5 {[%clk 0:00:05]} 39. Re3 {[%clk 0:00:32]}  f5 {[%clk 0:00:06]} 40. Re1 {[%clk 0:00:30]}  fxg4 {[%clk 0:00:06]} 41. hxg4 {[%clk 0:00:29]}  h5 {[%clk 0:00:07]} 42. gxh5+ {[%clk 0:00:30]}  Rxh5 {[%clk 0:00:08]} 43. Kf4 {[%clk 0:00:29]}  Rf5+ {[%clk 0:00:09]} 44. Kg3 {[%clk 0:00:29]}  Kf6 {[%clk 0:00:10]} 45. Rc1 {[%clk 0:00:29]}  Rg5+ {[%clk 0:00:10]} 46. Kf3 {[%clk 0:00:28]}  Re5 {[%clk 0:00:11]} 47. Kg3 {[%clk 0:00:28]}  Rf5 {[%clk 0:00:12]} 48. Rc2 {[%clk 0:00:27]}  Ke5 {[%clk 0:00:12]} 49. Rb2 {[%clk 0:00:27]}  Kd6 {[%clk 0:00:10]} 50. Rd2+ {[%clk 0:00:27]}  Ke7 {[%clk 0:00:10]} 51. Ra2 {[%clk 0:00:27]}  Kf8 {[%clk 0:00:09]} 52. Rb2 {[%clk 0:00:27]}  Kg7 {[%clk 0:00:09]} 53. Ra2 {[%clk 0:00:28]}  e5 {[%clk 0:00:10]} 54. Rb2 {[%clk 0:00:28]}  Rf4 {[%clk 0:00:10]} 55. Re2 {[%clk 0:00:28]}  f6 {[%clk 0:00:10]} 56. Rb2 {[%clk 0:00:29]}  Kg6 {[%clk 0:00:10]} 57. Rc2 {[%clk 0:00:29]}  Kf5 {[%clk 0:00:11]} 58. Rd2 {[%clk 0:00:29]}  Ra4 {[%clk 0:00:11]} 59. Re2 {[%clk 0:00:29]}  Ra3+ {[%clk 0:00:12]} 60. Kg2 {[%clk 0:00:30]}  Kf4 {[%clk 0:00:12]} 61. Rb2 {[%clk 0:00:29]}  Ra8 {[%clk 0:00:11]} 62. Rc2 {[%clk 0:00:28]}  Rg8+ {[%clk 0:00:11]} 63. Kf1 {[%clk 0:00:29]}  e4 {[%clk 0:00:11]} 64. Rc3 {[%clk 0:00:28]}  f5 {[%clk 0:00:11]} 65. Rb3 {[%clk 0:00:29]}  Rh8 {[%clk 0:00:09]} 66. Kg2 {[%clk 0:00:28]}  Rg8+ {[%clk 0:00:08]} 67. Kf1 {[%clk 0:00:28]}  Rd8 {[%clk 0:00:09]} 68. Kg2 {[%clk 0:00:28]}  Rd3 {[%clk 0:00:09]} 69. Rb4 {[%clk 0:00:27]}  Rd2 {[%clk 0:00:09]} 70. Ra4 {[%clk 0:00:27]}  Rc2 {[%clk 0:00:09]} 71. Ra3 {[%clk 0:00:27]}  Rc8 {[%clk 0:00:08]} 72. Ra4 {[%clk 0:00:27]}  Rc7 {[%clk 0:00:09]} 73. Kf1 {[%clk 0:00:27]}  Rg7 {[%clk 0:00:09]} 74. Ra3 {[%clk 0:00:27]}  Rg4 {[%clk 0:00:09]} 75. Rb3 {[%clk 0:00:27]}  Rh4 {[%clk 0:00:09]} 76. Ra3 {[%clk 0:00:27]}  Kg4 {[%clk 0:00:10]} 77. Kg2 {[%clk 0:00:27]}  f4 {[%clk 0:00:10]} 78. Ra4 {[%clk 0:00:24]}  f3+ {[%clk 0:00:10]} 79. Kg1 {[%clk 0:00:24]}  Kf4 {[%clk 0:00:10]} 80. Ra8 {[%clk 0:00:24]}  Rh5 {[%clk 0:00:07]} 81. Rf8+ {[%clk 0:00:22]}  Rf5 {[%clk 0:00:08]} 82. Re8 {[%clk 0:00:23]}  Rg5+ {[%clk 0:00:04]} 83. Kf1 {[%clk 0:00:22]}  Ra5 {[%clk 0:00:05]} 84. Rf8+ {[%clk 0:00:21]}  Ke5 {[%clk 0:00:05]} 85. Re8+ {[%clk 0:00:21]}  Kd4 {[%clk 0:00:06]} 86. Rd8+ {[%clk 0:00:21]}  Rd5 {[%clk 0:00:06]} 87. Re8 {[%clk 0:00:21]}  Rc5 {[%clk 0:00:06]} 88. Rd8+ {[%clk 0:00:20]}  Ke5 {[%clk 0:00:06]} 89. Re8+ {[%clk 0:00:19]}  Kf5 {[%clk 0:00:06]} 90. Rf8+ {[%clk 0:00:20]}  Kg6 {[%clk 0:00:06]} 91. Kg1 {[%clk 0:00:17]}  Rg5+ {[%clk 0:00:06]} 92. Kf1 {[%clk 0:00:17]}  Rh5 {[%clk 0:00:06]} 93. Kg1 {[%clk 0:00:17]}  Rf5 {[%clk 0:00:06]} 94. Re8 {[%clk 0:00:16]}  Rf4 {[%clk 0:00:06]} 95. Kh2 {[%clk 0:00:15]}  Kf5 {[%clk 0:00:05]} 96. Rf8+ {[%clk 0:00:15]}  Ke5 {[%clk 0:00:05]} 97. Re8+ {[%clk 0:00:15]}  Kd4 {[%clk 0:00:06]} 98. Rd8+ {[%clk 0:00:15]}  Kc4 {[%clk 0:00:06]} 99. Kg3 {[%clk 0:00:16]}  Rf7 {[%clk 0:00:06]} 100. Re8 {[%clk 0:00:15]}  Kd3 {[%clk 0:00:06]} 101. Rd8+ {[%clk 0:00:15]}  Ke2 {[%clk 0:00:06]} 102. Ra8 {[%clk 0:00:13]}  Rg7+ {[%clk 0:00:06]} 103. Kf4 {[%clk 0:00:13]}  Kxf2 {[%clk 0:00:06]} 104. Ra2+ {[%clk 0:00:12]}  Kg1 {[%clk 0:00:06]} 105. Kxe4 {[%clk 0:00:10]}  f2 {[%clk 0:00:06]} 106. Kf3 {[%clk 0:00:08]}  f1=Q+ {[%clk 0:00:06]} 0-1


[Site "https://www.chess.com"]

[Event "Titled Tuesday Blitz August 08 Late 2023"]
[White "Jimenez Martinez, Jose Vicente"]
[Black "Davidson, Kevin"]
[WhiteFideId "2264021"]
[BlackFideId "2056810"]
[WhiteElo "2600"]
[BlackElo "2365"]
[Result "1-0"]
[Round "11"]
[TimeControl "180+1"]
[Date "2023.08.08"]
[WhiteClock "0:02:09"]
[BlackClock "0:00:00"]
[Board "75"]

1. d4 {[%clk 0:03:00]}  Nf6 {[%clk 0:02:51]} 2. c4 {[%clk 0:03:01]}  g6 {[%clk 0:02:51]} 3. Nc3 {[%clk 0:03:01]}  Bg7 {[%clk 0:02:52]} 4. e4 {[%clk 0:03:01]}  d6 {[%clk 0:02:52]} 5. f3 {[%clk 0:03:02]}  O-O {[%clk 0:02:51]} 6. Be3 {[%clk 0:03:03]}  Nc6 {[%clk 0:02:51]} 7. Nge2 {[%clk 0:03:03]}  a6 {[%clk 0:02:51]} 8. Qd2 {[%clk 0:03:03]}  Rb8 {[%clk 0:02:47]} 9. Nc1 {[%clk 0:03:02]}  e5 {[%clk 0:02:46]} 10. d5 {[%clk 0:03:02]}  Nd4 {[%clk 0:02:45]} 11. Nb3 {[%clk 0:03:02]}  Nxb3 {[%clk 0:02:44]} 12. axb3 {[%clk 0:03:03]}  c5 {[%clk 0:02:44]} 13. b4 {[%clk 0:03:03]}  cxb4 {[%clk 0:02:41]} 14. Na4 {[%clk 0:03:04]}  b5 {[%clk 0:02:41]} 15. Qxb4 {[%clk 0:03:04]}  Bd7 {[%clk 0:02:25]} 16. cxb5 {[%clk 0:03:03]}  Bxb5 {[%clk 0:02:19]} 17. Bxb5 {[%clk 0:03:03]}  Rxb5 {[%clk 0:02:09]} 18. Qd2 {[%clk 0:03:03]}  Qb8 {[%clk 0:02:01]} 19. O-O {[%clk 0:03:03]}  Nh5 {[%clk 0:01:41]} 20. Rfc1 {[%clk 0:03:02]}  f5 {[%clk 0:01:40]} 21. Rc6 {[%clk 0:03:00]}  fxe4 {[%clk 0:01:28]} 22. fxe4 {[%clk 0:03:01]}  Nf6 {[%clk 0:01:17]} 23. Qd3 {[%clk 0:02:59]}  Rb3 {[%clk 0:01:12]} 24. Rc3 {[%clk 0:02:54]}  Rxc3 {[%clk 0:01:04]} 25. bxc3 {[%clk 0:02:55]}  Qb3 {[%clk 0:00:38]} 26. h3 {[%clk 0:02:49]}  Rc8 {[%clk 0:00:26]} 27. Qxa6 {[%clk 0:02:41]}  Qc4 {[%clk 0:00:16]} 28. Nb6 {[%clk 0:02:29]}  Qxa6 {[%clk 0:00:13]} 29. Rxa6 {[%clk 0:02:30]}  Rxc3 {[%clk 0:00:12]} 30. Ra8+ {[%clk 0:02:30]}  Kf7 {[%clk 0:00:12]} 31. Ra7+ {[%clk 0:02:30]}  Kg8 {[%clk 0:00:11]} 32. Bd2 {[%clk 0:02:27]}  Rc2 {[%clk 0:00:06]} 33. Bb4 {[%clk 0:02:19]}  Nxe4 {[%clk 0:00:06]} 34. Ra8+ {[%clk 0:02:19]}  Kf7 {[%clk 0:00:06]} 35. Nc8 {[%clk 0:02:19]}  Bf8 {[%clk 0:00:04]} 36. Ra7+ {[%clk 0:02:18]}  Kg8 {[%clk 0:00:04]} 37. Ra8 {[%clk 0:02:14]}  Kf7 {[%clk 0:00:03]} 38. Nb6 {[%clk 0:02:10]}  Rb2 {[%clk 0:00:02]} 39. Nd7 {[%clk 0:02:08]}  Rxb4 {[%clk 0:00:01]} 40. Nxf8 {[%clk 0:02:08]}  Rd4 {[%clk 0:00:00]} 41. Nxh7 {[%clk 0:02:09]} 1-0


[Site "https://www.chess.com"]

[Event "Titled Tuesday Blitz August 08 Late 2023"]
[White "JERO-8914"]
[Black "Pavlidou, Ekaterini"]
[BlackFideId "4213262"]
[WhiteElo "2440"]
[BlackElo "2351"]
[Result "1-0"]
[Round "11"]
[TimeControl "180+1"]
[Date "2023.08.08"]
[WhiteClock "0:00:05"]
[BlackClock "0:01:20"]
[Board "77"]

1. c4 {[%clk 0:03:00]}  e5 {[%clk 0:02:59]} 2. Nc3 {[%clk 0:02:59]}  Nc6 {[%clk 0:02:59]} 3. Nf3 {[%clk 0:02:52]}  g6 {[%clk 0:02:59]} 4. d4 {[%clk 0:02:51]}  exd4 {[%clk 0:02:57]} 5. Nxd4 {[%clk 0:02:52]}  Bg7 {[%clk 0:02:57]} 6. Nc2 {[%clk 0:02:50]}  Nge7 {[%clk 0:02:57]} 7. e4 {[%clk 0:02:49]}  d6 {[%clk 0:02:58]} 8. Be2 {[%clk 0:02:46]}  O-O {[%clk 0:02:58]} 9. O-O {[%clk 0:02:47]}  Be6 {[%clk 0:02:58]} 10. Bd2 {[%clk 0:02:33]}  Ne5 {[%clk 0:02:57]} 11. b3 {[%clk 0:02:33]}  f5 {[%clk 0:02:56]} 12. f4 {[%clk 0:02:30]}  Nf7 {[%clk 0:02:53]} 13. Rc1 {[%clk 0:02:18]}  Bxc3 {[%clk 0:02:48]} 14. Bxc3 {[%clk 0:02:18]}  fxe4 {[%clk 0:02:48]} 15. Ne3 {[%clk 0:02:05]}  c6 {[%clk 0:02:48]} 16. Qd4 {[%clk 0:02:03]}  Ne5 {[%clk 0:02:38]} 17. fxe5 {[%clk 0:01:59]}  d5 {[%clk 0:02:37]} 18. Bg4 {[%clk 0:01:50]}  Nf5 {[%clk 0:02:33]} 19. Bxf5 {[%clk 0:01:47]}  gxf5 {[%clk 0:02:33]} 20. cxd5 {[%clk 0:01:45]}  cxd5 {[%clk 0:02:32]} 21. Bb4 {[%clk 0:01:46]}  Rf7 {[%clk 0:02:31]} 22. Bd6 {[%clk 0:01:46]}  Qg5 {[%clk 0:02:31]} 23. Nxd5 {[%clk 0:01:44]}  Rg7 {[%clk 0:02:29]} 24. Nf4 {[%clk 0:01:39]}  Re8 {[%clk 0:02:25]} 25. g3 {[%clk 0:01:37]}  h5 {[%clk 0:02:24]} 26. Nxe6 {[%clk 0:00:59]}  Rxe6 {[%clk 0:02:23]} 27. Rc8+ {[%clk 0:00:58]}  Kh7 {[%clk 0:02:23]} 28. Rf8 {[%clk 0:00:57]}  h4 {[%clk 0:02:07]} 29. R8xf5 {[%clk 0:00:54]}  Qh6 {[%clk 0:01:58]} 30. Qxe4 {[%clk 0:00:52]}  Reg6 {[%clk 0:01:54]} 31. R1f4 {[%clk 0:00:18]}  hxg3 {[%clk 0:01:33]} 32. Rh4 {[%clk 0:00:16]}  gxh2+ {[%clk 0:01:33]} 33. Kf2 {[%clk 0:00:06]}  Rg2+ {[%clk 0:01:30]} 34. Ke1 {[%clk 0:00:04]}  h1=Q+ {[%clk 0:01:27]} 35. Rxh1 {[%clk 0:00:02]}  Qxh1+ {[%clk 0:01:27]} 36. Rf1+ {[%clk 0:00:03]}  R7g6 {[%clk 0:01:20]} 37. Rxh1+ {[%clk 0:00:03]}  Kg7 {[%clk 0:01:20]} 38. Qxb7+ {[%clk 0:00:03]}  Kg8 {[%clk 0:01:20]} 39. Qc8+ {[%clk 0:00:04]}  Kf7 {[%clk 0:01:20]} 40. Qd7+ {[%clk 0:00:04]}  Kg8 {[%clk 0:01:20]} 41. Qe8+ {[%clk 0:00:04]}  Kg7 {[%clk 0:01:20]} 42. Qf8# {[%clk 0:00:05]} 1-0


[Site "https://www.chess.com"]

[Event "Titled Tuesday Blitz August 08 Late 2023"]
[White "Guerrero Vargas, Andres Jesus"]
[Black "Beulen, Marcel"]
[WhiteFideId "3902048"]
[BlackFideId "1001450"]
[WhiteElo "2427"]
[BlackElo "2345"]
[Result "0-1"]
[Round "11"]
[TimeControl "180+1"]
[Date "2023.08.08"]
[WhiteClock "0:00:07"]
[BlackClock "0:00:02"]
[Board "78"]

1. e4 {[%clk 0:03:00]}  d5 {[%clk 0:02:59]} 2. exd5 {[%clk 0:03:00]}  Qxd5 {[%clk 0:03:00]} 3. Nc3 {[%clk 0:03:00]}  Qa5 {[%clk 0:03:00]} 4. d4 {[%clk 0:03:00]}  Nf6 {[%clk 0:03:00]} 5. Bc4 {[%clk 0:03:01]}  Bg4 {[%clk 0:02:57]} 6. f3 {[%clk 0:03:01]}  Bd7 {[%clk 0:02:57]} 7. Bd2 {[%clk 0:02:58]}  Qb6 {[%clk 0:02:55]} 8. Nge2 {[%clk 0:02:57]}  e6 {[%clk 0:02:55]} 9. O-O {[%clk 0:02:51]}  Be7 {[%clk 0:02:55]} 10. Kh1 {[%clk 0:02:51]}  O-O {[%clk 0:02:50]} 11. d5 {[%clk 0:02:48]}  exd5 {[%clk 0:02:44]} 12. Nxd5 {[%clk 0:02:43]}  Nxd5 {[%clk 0:02:37]} 13. Bxd5 {[%clk 0:02:43]}  Bc6 {[%clk 0:02:24]} 14. Bb3 {[%clk 0:02:33]}  Na6 {[%clk 0:02:04]} 15. Bc3 {[%clk 0:02:30]}  Rad8 {[%clk 0:02:02]} 16. Qe1 {[%clk 0:02:30]}  Bb4 {[%clk 0:01:47]} 17. Qh4 {[%clk 0:02:07]}  Bxc3 {[%clk 0:01:30]} 18. Nxc3 {[%clk 0:02:05]}  Nc5 {[%clk 0:01:29]} 19. Rad1 {[%clk 0:02:03]}  Rxd1 {[%clk 0:01:23]} 20. Rxd1 {[%clk 0:02:02]}  Nxb3 {[%clk 0:01:23]} 21. axb3 {[%clk 0:02:02]}  h6 {[%clk 0:01:07]} 22. Rd8 {[%clk 0:01:51]}  Rxd8 {[%clk 0:01:03]} 23. Qxd8+ {[%clk 0:01:51]}  Kh7 {[%clk 0:01:03]} 24. Qd3+ {[%clk 0:01:41]}  Kg8 {[%clk 0:01:02]} 25. h3 {[%clk 0:01:35]}  Qf2 {[%clk 0:01:00]} 26. Kh2 {[%clk 0:01:18]}  Qe1 {[%clk 0:00:43]} 27. Qd8+ {[%clk 0:01:12]}  Kh7 {[%clk 0:00:43]} 28. Qxc7 {[%clk 0:01:10]}  Qd2 {[%clk 0:00:41]} 29. Qxf7 {[%clk 0:01:03]}  Qxc2 {[%clk 0:00:41]} 30. Ne4 {[%clk 0:00:55]}  Bxe4 {[%clk 0:00:39]} 31. fxe4 {[%clk 0:00:54]}  Qxe4 {[%clk 0:00:40]} 32. Qf8 {[%clk 0:00:37]}  a6 {[%clk 0:00:36]} 33. Qf7 {[%clk 0:00:36]}  Qe5+ {[%clk 0:00:32]} 34. Kh1 {[%clk 0:00:36]}  b5 {[%clk 0:00:26]} 35. Qf2 {[%clk 0:00:34]}  Qd5 {[%clk 0:00:20]} 36. Qc2+ {[%clk 0:00:33]}  Kg8 {[%clk 0:00:18]} 37. Kg1 {[%clk 0:00:32]}  a5 {[%clk 0:00:16]} 38. Kf1 {[%clk 0:00:32]}  Kh8 {[%clk 0:00:13]} 39. Ke1 {[%clk 0:00:29]}  b4 {[%clk 0:00:10]} 40. Qd2 {[%clk 0:00:20]}  Qxb3 {[%clk 0:00:09]} 41. h4 {[%clk 0:00:14]}  a4 {[%clk 0:00:03]} 42. h5 {[%clk 0:00:12]}  a3 {[%clk 0:00:03]} 43. bxa3 {[%clk 0:00:13]}  bxa3 {[%clk 0:00:03]} 44. Qe2 {[%clk 0:00:13]}  Qb1+ {[%clk 0:00:02]} 45. Kf2 {[%clk 0:00:07]}  Qb2 {[%clk 0:00:02]} 0-1


[Site "https://www.chess.com"]

[Event "Titled Tuesday Blitz August 08 Late 2023"]
[White "Romero Ruscalleda, Josep"]
[Black "Cagara, Paulina"]
[WhiteFideId "2231859"]
[BlackFideId "1124870"]
[WhiteElo "2405"]
[BlackElo "2283"]
[Result "1-0"]
[Round "11"]
[TimeControl "180+1"]
[Date "2023.08.08"]
[WhiteClock "0:01:14"]
[BlackClock "0:00:37"]
[Board "81"]

1. e4 {[%clk 0:03:00]}  c6 {[%clk 0:02:59]} 2. Nc3 {[%clk 0:03:00]}  d5 {[%clk 0:02:57]} 3. Nf3 {[%clk 0:03:01]}  Bg4 {[%clk 0:02:56]} 4. h3 {[%clk 0:03:00]}  Bxf3 {[%clk 0:02:56]} 5. Qxf3 {[%clk 0:03:01]}  e6 {[%clk 0:02:56]} 6. d4 {[%clk 0:03:01]}  dxe4 {[%clk 0:02:55]} 7. Qxe4 {[%clk 0:03:01]}  Nf6 {[%clk 0:02:55]} 8. Qd3 {[%clk 0:03:01]}  Nbd7 {[%clk 0:02:54]} 9. g3 {[%clk 0:03:01]}  Qc7 {[%clk 0:02:50]} 10. Bg2 {[%clk 0:03:00]}  Bd6 {[%clk 0:02:49]} 11. O-O {[%clk 0:02:58]}  O-O-O {[%clk 0:02:44]} 12. a4 {[%clk 0:02:56]}  h5 {[%clk 0:02:42]} 13. Bg5 {[%clk 0:02:48]}  Rde8 {[%clk 0:02:32]} 14. a5 {[%clk 0:02:31]}  a6 {[%clk 0:02:32]} 15. Na4 {[%clk 0:02:24]}  Nd5 {[%clk 0:02:31]} 16. c4 {[%clk 0:02:19]}  Nb4 {[%clk 0:02:27]} 17. Qb3 {[%clk 0:02:19]}  Qxa5 {[%clk 0:02:25]} 18. c5 {[%clk 0:02:19]}  Qb5 {[%clk 0:02:08]} 19. cxd6 {[%clk 0:02:16]}  f6 {[%clk 0:02:05]} 20. Be3 {[%clk 0:02:13]}  Nd5 {[%clk 0:02:00]} 21. Qxb5 {[%clk 0:02:10]}  cxb5 {[%clk 0:01:57]} 22. Nc5 {[%clk 0:02:07]}  g5 {[%clk 0:01:44]} 23. Rfc1 {[%clk 0:02:04]}  h4 {[%clk 0:01:30]} 24. Nxe6+ {[%clk 0:01:56]}  Kb8 {[%clk 0:01:28]} 25. Bxd5 {[%clk 0:01:56]}  Nb6 {[%clk 0:01:27]} 26. Bb3 {[%clk 0:01:42]}  hxg3 {[%clk 0:01:27]} 27. fxg3 {[%clk 0:01:42]}  Rxh3 {[%clk 0:01:26]} 28. Kg2 {[%clk 0:01:42]}  Rh7 {[%clk 0:01:22]} 29. Rc7 {[%clk 0:01:38]}  Rhh8 {[%clk 0:01:15]} 30. d5 {[%clk 0:01:36]}  Na8 {[%clk 0:01:02]} 31. Re7 {[%clk 0:01:29]}  Rc8 {[%clk 0:00:56]} 32. Rc1 {[%clk 0:01:27]}  Rxc1 {[%clk 0:00:54]} 33. Bxc1 {[%clk 0:01:27]}  Nb6 {[%clk 0:00:54]} 34. Be3 {[%clk 0:01:27]}  Nc8 {[%clk 0:00:53]} 35. Rd7 {[%clk 0:01:21]}  f5 {[%clk 0:00:52]} 36. Bd4 {[%clk 0:01:20]}  Re8 {[%clk 0:00:48]} 37. Be5 {[%clk 0:01:16]}  f4 {[%clk 0:00:43]} 38. gxf4 {[%clk 0:01:16]}  gxf4 {[%clk 0:00:43]} 39. Bxf4 {[%clk 0:01:16]}  Rg8+ {[%clk 0:00:43]} 40. Kf3 {[%clk 0:01:16]}  Nb6 {[%clk 0:00:42]} 41. Rg7 {[%clk 0:01:14]}  Rc8 {[%clk 0:00:37]} 42. d7+ {[%clk 0:01:14]} 1-0


[Site "https://www.chess.com"]

[Event "Titled Tuesday Blitz August 08 Late 2023"]
[White "Orlov, Georgi"]
[Black "laskakid"]
[WhiteFideId "2011271"]
[WhiteElo "2534"]
[BlackElo "2136"]
[Result "1-0"]
[Round "11"]
[TimeControl "180+1"]
[Date "2023.08.08"]
[WhiteClock "0:00:32"]
[BlackClock "0:00:03"]
[Board "86"]

1. d4 {[%clk 0:03:00]}  d5 {[%clk 0:02:59]} 2. Nf3 {[%clk 0:03:00]}  Nf6 {[%clk 0:02:58]} 3. c4 {[%clk 0:03:00]}  c6 {[%clk 0:02:59]} 4. Nc3 {[%clk 0:02:58]}  dxc4 {[%clk 0:02:59]} 5. a4 {[%clk 0:02:56]}  Bf5 {[%clk 0:02:58]} 6. e3 {[%clk 0:02:55]}  e6 {[%clk 0:02:57]} 7. Bxc4 {[%clk 0:02:55]}  Bb4 {[%clk 0:02:57]} 8. O-O {[%clk 0:02:56]}  O-O {[%clk 0:02:56]} 9. Qe2 {[%clk 0:02:56]}  Bg6 {[%clk 0:02:51]} 10. Ne5 {[%clk 0:02:55]}  Nbd7 {[%clk 0:02:51]} 11. Nxg6 {[%clk 0:02:50]}  hxg6 {[%clk 0:02:51]} 12. Rd1 {[%clk 0:02:51]}  Qc7 {[%clk 0:02:37]} 13. f4 {[%clk 0:02:40]}  c5 {[%clk 0:02:32]} 14. d5 {[%clk 0:02:38]}  Bxc3 {[%clk 0:02:15]} 15. dxe6 {[%clk 0:02:36]}  Bb4 {[%clk 0:01:39]} 16. exd7 {[%clk 0:02:33]}  Nxd7 {[%clk 0:01:38]} 17. e4 {[%clk 0:02:27]}  Nb6 {[%clk 0:01:30]} 18. e5 {[%clk 0:02:22]}  Nxc4 {[%clk 0:01:28]} 19. Qxc4 {[%clk 0:02:21]}  Rad8 {[%clk 0:01:24]} 20. Be3 {[%clk 0:02:20]}  Rxd1+ {[%clk 0:01:20]} 21. Rxd1 {[%clk 0:02:20]}  Rd8 {[%clk 0:01:20]} 22. Rd5 {[%clk 0:02:14]}  b6 {[%clk 0:01:11]} 23. Qd3 {[%clk 0:01:58]}  Rxd5 {[%clk 0:01:09]} 24. Qxd5 {[%clk 0:01:58]}  c4 {[%clk 0:01:09]} 25. e6 {[%clk 0:01:43]}  fxe6 {[%clk 0:01:02]} 26. Qxe6+ {[%clk 0:01:42]}  Kh7 {[%clk 0:00:57]} 27. f5 {[%clk 0:01:27]}  gxf5 {[%clk 0:00:52]} 28. Qxf5+ {[%clk 0:01:27]}  Kg8 {[%clk 0:00:51]} 29. Qd5+ {[%clk 0:01:21]}  Qf7 {[%clk 0:00:44]} 30. Qe4 {[%clk 0:01:18]}  Ba5 {[%clk 0:00:29]} 31. Bd4 {[%clk 0:01:12]}  Bb4 {[%clk 0:00:27]} 32. Qe5 {[%clk 0:01:05]}  Bf8 {[%clk 0:00:25]} 33. h4 {[%clk 0:01:03]}  Qg6 {[%clk 0:00:23]} 34. h5 {[%clk 0:01:01]}  Qd3 {[%clk 0:00:20]} 35. Kh2 {[%clk 0:00:57]}  Qd1 {[%clk 0:00:11]} 36. h6 {[%clk 0:00:32]}  gxh6 {[%clk 0:00:11]} 37. Qe6+ {[%clk 0:00:32]}  Kh7 {[%clk 0:00:03]} 38. Qf7+ {[%clk 0:00:32]} 1-0


[Site "https://www.chess.com"]